fUST/lending_fUST_20250824
["ID","MTS","AMOUNT","RATE_DAILY","PERIOD"]
[381091199,1756029039669,-844.67759735,0.00044,120]
[381091200,1756029039681,-871.5294857,0.00044072,43]
[381091201,1756029039693,-151.0,0.000447,10]
[381091202,1756029039702,-600.0,0.00044976,60]
[381091203,1756029039711,-1000.0,0.00044999,120]
[381091204,1756029039720,-250.0,0.00045,120]
[381091205,1756029039730,-1008.17,0.00045205,120]
[381091206,1756029039740,-151.0,0.000455,26]
[381091207,1756029039749,-600.0,0.00045524,60]
[381091208,1756029039758,-2200.0,0.00045643,14]
[381091209,1756029039767,-27372.082941,0.00045778,4]
[381091210,1756029039777,-600.0,0.00046072,60]
[381091211,1756029039786,-151.0,0.000463,29]
[381091212,1756029039795,-1000.0,0.00046301,120]
[381091213,1756029039804,-1000.0,0.00046301,120]
[381091214,1756029039814,-1000.0,0.00046301,120]
[381091215,1756029039823,-1000.0,0.00046301,120]
[381091216,1756029039832,-1000.0,0.00046301,120]
[381091217,1756029039842,-1000.0,0.00046301,120]
[381091218,1756029039851,-1008.17,0.00046575,120]
[381091219,1756029039860,-600.0,0.0004662,60]
[381091220,1756029039869,-1000.0,0.00046999,120]
[381091221,1756029039879,-1000.0,0.00047,120]
[381091222,1756029039888,-600.0,0.00047168,60]
[381091223,1756029040062,-151.0,0.000472,25]
[381091224,1756029040118,-151.0,0.000473,21]
[381091225,1756029040130,-500.0,0.00047327,30]
[381091226,1756029040139,-529.17068775,0.0004736,10]
[381091228,1756029040148,-160.0,0.0004736,10]
[381091229,1756029040158,-417.15472785,0.0004736,10]
[381091230,1756029040169,-500.0,0.00047365,120]
[381091232,1756029040178,-307.00551938,0.00047365,120]
[381091233,1756029040187,-46049.64217993,0.00047366,120]
[381091234,1756029040197,-500.0,0.00047366,30]
[381091235,1756029040206,-8869.43684053,0.00047366,10]
[381091236,1756029040215,-191604.580587,0.00047456,4]
[381091237,1756029040224,-370000.0,0.00047466,2]
[381091238,1756029040234,-500.0,0.00047473,10]
[381091239,1756029040246,-500.0,0.00047473,10]
[381091240,1756029040255,-500.0,0.00047473,7]
[381091241,1756029040264,-500.0,0.00047473,10]
[381091242,1756029040275,-500.0,0.00047473,2]
[381091243,1756029040286,-500.0,0.00047473,10]
[381091244,1756029040295,-500.0,0.00047473,10]
[381091246,1756029040305,-500.0,0.00047473,10]
[381091248,1756029040315,-500.49535284,0.00047473,7]
[381091250,1756029040324,-500.0,0.00047473,10]
[381091251,1756029040343,-500.0,0.00047473,10]
[381091252,1756029040354,-502.97462895,0.00047473,10]
[381091253,1756029040364,-500.0,0.00047473,10]
[381091254,1756029040374,-500.0,0.00047473,10]
[381091255,1756029040384,-500.0,0.00047473,10]
[381091256,1756029040395,-196.97336673,0.00047473,10]
[381091257,1756029040409,-844.67759735,0.000475,10]
[381091259,1756029040419,-217.07852671,0.000475,10]
[381091261,1756029040429,-871.5294857,0.00047525,50]
[381091263,1756029040439,-1902.44585603,0.00047622,2]
[381091265,1756029040449,-500.0,0.00047653,30]
[381091268,1756029040459,-500.0,0.00047675,30]
[381091270,1756029040470,-844.67759735,0.000477,30]
[381091271,1756029040479,-217.07852671,0.000477,30]
[381091272,1756029040489,-500.0,0.00047755,30]
[381091273,1756029040502,-151.0,0.00047755,120]
[381091274,1756029040513,-151.0,0.00047755,120]
[381091276,1756029040523,-151.0,0.00047755,120]
[381091278,1756029040532,-151.0,0.00047755,120]
[381091280,1756029040544,-151.0,0.00047755,120]
[381091282,1756029040554,-278.71633022,0.00047755,120]
[381091284,1756029040564,-151.0,0.00047755,120]
[381091286,1756029040574,-151.0,0.00047755,120]
[381091288,1756029040584,-151.0,0.00047755,120]
[381091290,1756029040595,-151.0,0.00047755,120]
[381091292,1756029040606,-500.0,0.00047755,120]
[381091294,1756029040616,-1902.44585603,0.0004776,2]
[381091296,1756029040626,-500.0,0.0004785,30]
[381091298,1756029040636,-250.0,0.00047873,10]
[381091300,1756029040646,-500.39064914,0.00047873,7]
[381091302,1756029040655,-515.06,0.00047878,30]
[381091304,1756029040665,-429.22,0.00047878,30]
[381091306,1756029040675,-357.68,0.00047878,30]
[381091308,1756029040684,-298.07,0.00047878,30]
[381091310,1756029040695,-248.39,0.00047878,30]
[381091312,1756029040705,-206.99,0.00047878,30]
[381091314,1756029040715,-172.49,0.00047878,30]
[381091316,1756029040725,-862.5,0.00047878,30]
[381091318,1756029040735,-500.0,0.00047881,30]
[381091321,1756029040744,-1902.44585603,0.00047898,2]
[381091323,1756029040755,-529.17068775,0.000479,30]
[381091325,1756029040764,-160.0,0.000479,30]
[381091327,1756029040774,-1008.17,0.00047944,120]
[381091329,1756029040784,-500.0,0.00047973,10]
[381091331,1756029040795,-377.29421286,0.00047973,10]
[381091333,1756029040804,-500.0,0.00047973,10]
[381091335,1756029040815,-500.0,0.00047973,10]
[381091337,1756029040825,-500.0,0.00047973,10]
[381091339,1756029040835,-500.0,0.00047973,10]
[381091341,1756029040845,-500.0,0.00047973,10]
[381091343,1756029040855,-151.0,0.00047998,120]
[381091345,1756029040864,-151.0,0.00047998,120]
[381091347,1756029040875,-151.0,0.00047998,120]
[381091349,1756029040884,-151.0,0.00047998,120]
[381091351,1756029040894,-151.0,0.00047998,120]
[381091353,1756029040904,-151.0,0.00047998,120]
[381091355,1756029040913,-151.0,0.00047998,120]
[381091357,1756029040923,-291.24052599,0.00047998,120]
[381091359,1756029040933,-151.0,0.00047998,120]
[381091362,1756029040943,-16000.0,0.00047998,120]
[381091363,1756029040952,-151.0,0.00047998,120]
[381091366,1756029040962,-151.0,0.00047998,120]
[381091368,1756029040971,-151.0,0.00047998,120]
[381091370,1756029040980,-151.0,0.00047998,120]
[381091372,1756029040990,-151.0,0.00047998,120]
[381091374,1756029041000,-151.0,0.00047998,120]
[381091376,1756029041010,-200.13064809,0.00047998,120]
[381091378,1756029041020,-151.0,0.00047998,120]
[381091380,1756029041030,-151.0,0.00047998,120]
[381091382,1756029041040,-151.0,0.00047998,120]
[381091384,1756029041050,-151.0,0.00047998,120]
[381091386,1756029041060,-500.0,0.00047998,120]
[381091388,1756029041070,-250.0,0.00047998,120]
[381091389,1756029041080,-151.0,0.00047998,120]
[381091391,1756029041090,-151.0,0.00047998,120]
[381091393,1756029041099,-500.0,0.00047998,120]
[381091394,1756029041109,-250.0,0.00047998,120]
[381091395,1756029041119,-151.0,0.00047998,120]
[381091396,1756029041128,-500.0,0.00047998,120]
[381091397,1756029041138,-250.0,0.00047998,120]
[381091398,1756029041147,-151.0,0.00047998,120]
[381091399,1756029041158,-151.0,0.00047998,120]
[381091400,1756029041167,-500.0,0.00047998,120]
[381091401,1756029041177,-250.0,0.00047998,120]
[381091402,1756029041187,-151.0,0.00047998,120]
[381091403,1756029041196,-500.0,0.00047998,120]
[381091404,1756029041206,-151.0,0.00047998,120]
[381091405,1756029041215,-151.0,0.00047998,120]
[381091406,1756029041226,-250.0,0.00047998,120]
[381091407,1756029041235,-16592.0,0.00047998,120]
[381091408,1756029041245,-300.0,0.00047998,120]
[381091409,1756029041255,-151.0,0.00047998,120]
[381091410,1756029041264,-151.0,0.00047998,120]
[381091411,1756029041275,-500.0,0.00047998,120]
[381091412,1756029041284,-250.0,0.00047998,120]
[381091413,1756029041294,-17205.904,0.00047998,120]
[381091414,1756029041303,-151.0,0.00047998,120]
[381091415,1756029041313,-151.0,0.00047998,120]
[381091416,1756029041322,-500.0,0.00047998,120]
[381091417,1756029041332,-300.0,0.00047998,120]
[381091418,1756029041341,-17842.522448,0.00047998,120]
[381091419,1756029041351,-250.0,0.00047998,120]
[381091420,1756029041360,-151.0,0.00047998,120]
[381091421,1756029041370,-151.0,0.00047998,120]
[381091422,1756029041380,-500.0,0.00047998,120]
[381091423,1756029041390,-300.0,0.00047998,120]
[381091424,1756029041399,-250.0,0.00047998,120]
[381091425,1756029041410,-151.0,0.00047998,120]
[381091426,1756029041420,-18502.69577858,0.00047998,120]
[381091427,1756029041429,-500.0,0.00047998,120]
[381091428,1756029041439,-300.0,0.00047998,120]
[381091429,1756029041448,-151.0,0.00047998,120]
[381091430,1756029041458,-19187.29552238,0.00047998,120]
[381091431,1756029041468,-151.0,0.00047998,120]
[381091432,1756029041478,-300.0,0.00047998,120]
[381091433,1756029041487,-250.0,0.00047998,120]
[381091434,1756029041497,-151.0,0.00047998,120]
[381091435,1756029041510,-19897.22545671,0.00047998,120]
[381091436,1756029041520,-151.0,0.00047998,120]
[381091437,1756029041529,-300.0,0.00047998,120]
[381091438,1756029041542,-16164.04805316,0.00047998,120]
[381091439,1756029041552,-250.0,0.00047998,120]
[381091440,1756029041561,-151.0,0.00047998,120]
[381091441,1756029041571,-300.0,0.00047998,120]
[381091442,1756029041581,-250.0,0.00047998,120]
[381091443,1756029041590,-356.50235063,0.00047998,120]
[381091444,1756029041600,-267.40561569,0.00047998,120]
[381091445,1756029041609,-250.0,0.00047998,120]
[381091446,1756029041619,-250.0,0.00047998,120]
[381091447,1756029041628,-250.0,0.00047998,120]
[381091448,1756029041638,-250.0,0.00047998,120]
[381091449,1756029041647,-250.0,0.00047998,120]
[381091450,1756029041657,-275.21884075,0.00047998,120]
[381091451,1756029041666,-151.0,0.00047998,120]
[381091452,1756029041676,-156.587,0.00047998,120]
[381091453,1756029041685,-162.380719,0.00047998,120]
[381091454,1756029041695,-168.3888056,0.00047998,120]
[381091455,1756029041704,-174.61919141,0.00047998,120]
[381091456,1756029041714,-181.08010149,0.00047998,120]
[381091457,1756029041724,-187.78006525,0.00047998,120]
[381091458,1756029041733,-194.72792766,0.00047998,120]
[381091459,1756029041743,-198.87772139,0.00047998,120]
[381091460,1756029041753,-1000.0,0.00047999,120]
[381091461,1756029041763,-962.49134756,0.00047999,120]
[381091462,1756029041772,-1000.0,0.00048,120]
[381091463,1756029041782,-325.93,0.00048,14]
[381091464,1756029041791,-154.52,0.00048,7]
[381091465,1756029041801,-164.0,0.00048,90]
[381091466,1756029041811,-501.74330652,0.00048021,10]
[381091467,1756029041820,-335.56434949,0.00048021,10]
[381091468,1756029041829,-1000.0,0.00048021,7]
[381091469,1756029041839,-1000.0,0.00048021,2]
[381091470,1756029041849,-1000.0,0.00048021,10]
[381091471,1756029041859,-1000.0,0.00048021,10]
[381091472,1756029041868,-151.0,0.00048029,120]
[381091473,1756029041877,-151.0,0.00048029,120]
[381091474,1756029041887,-500.0,0.00048029,120]
[381091475,1756029041897,-500.0,0.00048035,30]
[381091476,1756029041906,-500.0,0.00048143,30]
[381091477,1756029041915,-500.0,0.00048254,30]
[381091478,1756029041925,-600.0,0.00048264,60]
[381091479,1756029041934,-500.0,0.00048265,30]
[381091480,1756029041944,-151.0,0.00048303,120]
[381091481,1756029041953,-151.0,0.00048303,120]
[381091482,1756029041963,-500.0,0.00048303,120]
[381091483,1756029041972,-502.95907648,0.00048521,10]
[381091484,1756029041982,-500.0,0.00048521,10]
[381091485,1756029041992,-647.66914228,0.00048545,8]
[381091486,1756029042001,-500.0,0.00048564,30]
[381091487,1756029042010,-1000.0,0.00048568,7]
[381091488,1756029042020,-1500.0,0.00048568,2]
[381091489,1756029042029,-1002.84909502,0.00048568,10]
[381091490,1756029042039,-500.0,0.00048568,10]
[381091491,1756029042048,-151.0,0.00048577,120]
[381091492,1756029042058,-500.0,0.00048577,120]
[381091493,1756029042067,-232.42214577,0.000486,10]
[381091494,1756029042077,-500.0,0.00048693,30]
[381091495,1756029042086,-151.0,0.000487,120]
[381091496,1756029042095,-217.07852671,0.00048747,2]
[381091497,1756029042104,-200.0,0.0004879,120]
[381091498,1756029042113,-500.0,0.00048833,30]
[381091499,1756029042122,-195.0,0.00048851,120]
[381091500,1756029042131,-500.0,0.00048851,120]
[381091501,1756029042141,-500.0,0.0004888,30]
[381091502,1756029042150,-183.887,0.00048905,85]
[381091503,1756029042159,-500.0,0.00048973,10]
[381091504,1756029042169,-500.0,0.00048994,30]
[381091505,1756029042178,-30576.76,0.00049,120]
[381091506,1756029042187,-11926.6460914,0.00049,120]
[381091507,1756029042196,-151.0,0.00049,120]
[381091508,1756029042205,-151.0,0.00049,120]
[381091509,1756029042214,-151.0,0.00049,120]
[381091510,1756029042223,-151.0,0.00049,120]
[381091511,1756029042232,-151.0,0.00049,120]
[381091512,1756029042241,-151.0,0.00049,120]
[381091513,1756029042250,-151.0,0.00049,120]
[381091514,1756029042259,-262.66069,0.00049,120]
[381091515,1756029042268,-151.0,0.00049,120]
[381091516,1756029042278,-151.0,0.00049,120]
[381091517,1756029042287,-151.0,0.00049,120]
[381091518,1756029042296,-151.0,0.00049,120]
[381091519,1756029042304,-151.0,0.00049,120]
[381091520,1756029042313,-151.0,0.00049,120]
[381091521,1756029042322,-151.0,0.00049,120]
[381091522,1756029042331,-151.0,0.00049,120]
[381091523,1756029042340,-151.0,0.00049,120]
[381091524,1756029042349,-151.0,0.00049,120]
[381091525,1756029042358,-151.0,0.00049,120]
[381091526,1756029042367,-151.0,0.00049,120]
[381091527,1756029042376,-151.0,0.00049,120]
[381091528,1756029042385,-151.0,0.00049,120]
[381091529,1756029042394,-151.0,0.00049,120]
[381091530,1756029042404,-151.0,0.00049,120]
[381091531,1756029042413,-151.0,0.00049,120]
[381091532,1756029042422,-263.146027,0.00049,120]
[381091533,1756029042431,-263.146027,0.00049,120]
[381091534,1756029042440,-263.146027,0.00049,120]
[381091535,1756029042450,-263.146027,0.00049,120]
[381091536,1756029042459,-1000.0,0.00049116,2]
[381091537,1756029042469,-500.0,0.00049125,120]
[381091538,1756029042479,-1338.0,0.00049178,76]
[381091539,1756029042488,-154.52,0.000492,7]
[381091540,1756029042498,-392.25,0.000492,14]
[381091541,1756029042510,-1000.0,0.00049215,2]
[381091542,1756029042520,-871.5294857,0.00049251,54]
[381091543,1756029042529,-1008.17,0.00049314,120]
[381091544,1756029042538,-485.02,0.00049315,120]
[381091545,1756029042548,-160.0,0.00049315,3]
[381091546,1756029042557,-162.45220993,0.00049315,5]
[381091547,1756029042567,-151.0,0.00049315,120]
[381091548,1756029042577,-151.0,0.00049315,120]
[381091549,1756029042586,-218.47563043,0.00049315,5]
[381091550,1756029042596,-151.0,0.00049315,120]
[381091551,1756029042605,-151.0,0.00049315,120]
[381091552,1756029042614,-214.713538,0.00049315,120]
[381091553,1756029042623,-151.0,0.00049315,120]
[381091554,1756029042633,-214.713538,0.00049315,120]
[381091555,1756029042642,-151.0,0.00049315,120]
[381091556,1756029042651,-214.713538,0.00049315,120]
[381091557,1756029042661,-151.0,0.00049315,120]
[381091558,1756029042671,-214.713538,0.00049315,120]
[381091559,1756029042680,-178.891222,0.00049315,120]
[381091560,1756029042690,-178.891222,0.00049315,120]
[381091561,1756029042699,-178.891222,0.00049315,120]
[381091562,1756029042708,-178.891222,0.00049315,120]
[381091563,1756029042718,-174.81553,0.00049315,120]
[381091564,1756029042727,-174.81553,0.00049315,120]
[381091565,1756029042735,-234.387578,0.00049315,14]
[381091566,1756029042745,-174.81553,0.00049315,120]
[381091567,1756029042754,-174.81553,0.00049315,120]
[381091568,1756029042764,-151.0,0.00049315,120]
[381091569,1756029042773,-151.161939,0.00049315,120]
[381091570,1756029042782,-351.043672,0.00049315,120]
[381091571,1756029042792,-351.043672,0.00049315,120]
[381091572,1756029042801,-351.043672,0.00049315,120]
[381091573,1756029042810,-351.043672,0.00049315,120]
[381091574,1756029042819,-151.0,0.00049315,120]
[381091575,1756029042828,-151.0,0.00049315,120]
[381091576,1756029042837,-167.485033,0.00049315,120]
[381091577,1756029042847,-151.0,0.00049315,120]
[381091578,1756029042856,-151.0,0.00049315,30]
[381091579,1756029042865,-174.831952,0.00049315,120]
[381091580,1756029042874,-151.0,0.00049315,120]
[381091581,1756029042884,-151.0,0.00049315,120]
[381091582,1756029042893,-151.0,0.00049315,120]
[381091583,1756029042902,-151.0,0.00049315,120]
[381091584,1756029042911,-151.0,0.00049315,120]
[381091585,1756029042920,-151.0,0.00049315,120]
[381091586,1756029042929,-151.0,0.00049315,120]
[381091587,1756029042938,-151.0,0.00049315,120]
[381091588,1756029042947,-151.0,0.00049315,120]
[381091589,1756029042956,-151.0,0.00049315,120]
[381091590,1756029042965,-7662.31,0.00049315,120]
[381091591,1756029042974,-7662.31,0.00049315,120]
[381091592,1756029042984,-7662.31,0.00049315,120]
[381091594,1756029042993,-7662.31,0.00049315,120]
[381091595,1756029043002,-7662.31,0.00049315,120]
[381091596,1756029043012,-7662.31,0.00049315,120]
[381091597,1756029043022,-7662.31,0.00049315,120]
[381091598,1756029043032,-7662.31,0.00049315,120]
[381091599,1756029043041,-7662.31,0.00049315,120]
[381091600,1756029043051,-7662.31,0.00049315,120]
[381091601,1756029043060,-7662.31,0.00049315,120]
[381091602,1756029043070,-7662.31,0.00049315,120]
[381091603,1756029043079,-7662.31,0.00049315,120]
[381091604,1756029043089,-7662.31,0.00049315,120]
[381091605,1756029043098,-7662.31,0.00049315,120]
[381091606,1756029043109,-7662.31,0.00049315,120]
[381091607,1756029043118,-7662.31,0.00049315,120]
[381091608,1756029043127,-7662.31,0.00049315,120]
[381091609,1756029043137,-7662.31,0.00049315,120]
[381091610,1756029043146,-7662.31,0.00049315,120]
[381091611,1756029043155,-7662.31,0.00049315,120]
[381091612,1756029043164,-7662.31,0.00049315,120]
[381091613,1756029043174,-7662.31,0.00049315,120]
[381091614,1756029043183,-7662.46279138,0.00049315,120]
[381091615,1756029043192,-151.0,0.00049315,15]
[381091616,1756029043201,-246.353431,0.00049315,120]
[381091617,1756029043211,-151.0,0.00049315,120]
[381091618,1756029043220,-298.994804,0.00049315,120]
[381091619,1756029043230,-151.0,0.00049315,120]
[381091620,1756029043239,-151.0,0.00049315,120]
[381091621,1756029043249,-151.0,0.00049315,120]
[381091622,1756029043258,-333.640796,0.00049315,120]
[381091623,1756029043268,-151.0,0.00049315,120]
[381091624,1756029043277,-151.0,0.00049315,120]
[381091625,1756029043287,-333.640796,0.00049315,120]
[381091626,1756029043296,-151.0,0.00049315,120]
[381091627,1756029043305,-333.640796,0.00049315,120]
[381091628,1756029043314,-333.640796,0.00049315,120]
[381091629,1756029043324,-151.0,0.00049315,120]
[381091630,1756029043333,-500.0,0.00049321,30]
[381091631,1756029043342,-8869.43684053,0.00049333,10]
[381091632,1756029043351,-500.0,0.00049346,30]
[381091634,1756029043361,-600.0,0.0004936,60]
[381091635,1756029043370,-501.31030205,0.00049373,10]
[381091636,1756029043379,-150.0,0.00049373,7]
[381091637,1756029043388,-150.0,0.00049373,10]
[381091638,1756029043397,-150.0,0.00049373,10]
[381091639,1756029043407,-500.0,0.00049399,120]
[381091641,1756029043417,-325.93,0.000494,14]
[381091643,1756029043427,-6542.81,0.000494,14]
[381091644,1756029043435,-500.0,0.00049443,30]
[381091645,1756029043445,-724.86801381,0.00049448,30]
[381091646,1756029043454,-500.0,0.00049452,30]
[381091647,1756029043463,-237.68824768,0.000495,120]
[381091648,1756029043472,-500.0,0.00049512,30]
[381091649,1756029043481,-501.03600475,0.00049521,10]
[381091650,1756029043490,-485.02,0.00049589,120]
[381091651,1756029043500,-500.0,0.00049597,30]
[381091652,1756029043511,-500.0,0.00049607,30]
[381091653,1756029043521,-500.0,0.00049673,120]
[381091654,1756029043530,-500.0,0.00049698,30]
[381091655,1756029043539,-500.0,0.00049708,30]
[381091656,1756029043551,-500.0,0.00049749,30]
[381091657,1756029043560,-500.0,0.00049799,30]
[381091658,1756029043570,-1000.0,0.000498,120]
[381091659,1756029043580,-485.02,0.00049863,120]
[381091660,1756029043590,-300.9704624,0.00049921,7]
[381091661,1756029043599,-350.44851005,0.00049921,10]
[381091662,1756029043608,-400.0,0.00049921,10]
[381091663,1756029043618,-500.0,0.00049947,120]
[381091664,1756029043627,-500.0,0.0004997,30]
[381091665,1756029043636,-1000.0,0.00049999,120]
[381091666,1756029043645,-219.3374634,0.0005,20]
[381091667,1756029043654,-200.0,0.0005,120]
[381091668,1756029043664,-35102.5,0.0005,120]
[381091669,1756029043674,-2012.0,0.0005,49]
[381091670,1756029043683,-844.67759735,0.0005,7]
[381091671,1756029043693,-500.0,0.00050001,60]
[381091672,1756029043704,-500.0,0.00050116,60]
[381091673,1756029043714,-485.02,0.00050136,120]
[381091674,1756029043723,-153.0,0.00050137,30]
[381091675,1756029043732,-153.0,0.00050137,30]
[381091676,1756029043742,-153.0,0.00050137,30]
[381091677,1756029043751,-500.0,0.00050174,60]
[381091678,1756029043761,-500.0,0.00050221,120]
[381091679,1756029043770,-500.0,0.00050399,60]
[381091680,1756029043780,-485.02,0.0005041,120]
[381091681,1756029043790,-600.0,0.00050456,60]
[381091682,1756029043799,-164.0,0.00050486,120]
[381091683,1756029043808,-500.0,0.00050495,120]
[381091685,1756029043818,-501.06389529,0.00050499,60]
[381091686,1756029043827,-15000.0,0.000505,120]
[381091687,1756029043847,-154.52,0.000505,7]
[381091688,1756029043863,-151.0,0.000505,120]
[381091689,1756029043872,-151.0,0.000505,120]
[381091690,1756029043881,-500.0,0.00050562,60]
[381091691,1756029043891,-150.0,0.000506,120]
[381091692,1756029043900,-485.02,0.00050684,120]
[381091693,1756029043910,-151.0,0.00050684,120]
[381091694,1756029043921,-151.0,0.00050684,120]
[381091695,1756029043930,-151.0,0.00050684,120]
[381091696,1756029043941,-1008.17,0.00050684,120]
[381091697,1756029043950,-447.6054018,0.00050685,30]
[381091698,1756029043960,-500.0,0.00050685,10]
[381091699,1756029043970,-6542.81,0.000507,14]
[381091700,1756029043979,-151.0,0.000507,120]
[381091701,1756029043989,-500.0,0.00050769,120]
[381091702,1756029044000,-2363.45,0.000509,120]
[381091703,1756029044010,-325.93,0.000509,14]
[381091704,1756029044019,-151.0,0.000509,120]
[381091705,1756029044030,-151.0,0.000509,120]
[381091706,1756029044230,-151.0,0.000509,120]
[381091707,1756029044240,-176.218917,0.000509,120]
[381091708,1756029044250,-151.0,0.000509,120]
[381091709,1756029044260,-151.0,0.000509,120]
[381091710,1756029044270,-151.0,0.000509,120]
[381091711,1756029044279,-151.0,0.000509,120]
[381091712,1756029044289,-151.0,0.000509,120]
[381091713,1756029044298,-248.240322,0.000509,120]
[381091714,1756029044308,-151.0,0.000509,120]
[381091715,1756029044318,-151.0,0.000509,120]
[381091717,1756029044328,-263.146027,0.000509,120]
[381091719,1756029044337,-263.146027,0.000509,120]
[381091721,1756029044347,-263.146027,0.000509,120]
[381091722,1756029044356,-263.146027,0.000509,120]
[381091723,1756029044365,-485.02,0.00050958,120]
[381091724,1756029044374,-532.67870605,0.00050973,60]
[381091725,1756029044384,-871.5294857,0.00050978,58]
[381091726,1756029044393,-976.0,0.00051,120]
[381091727,1756029044403,-500.0,0.00051043,120]
[381091728,1756029044412,-485.02,0.00051232,120]
[381091729,1756029044421,-176.07026915,0.000513,120]
[381091730,1756029044432,-6020.94412136,0.000513,2]
[381091731,1756029044441,-8869.43684053,0.000513,10]
[381091732,1756029044451,-500.0,0.00051317,120]
[381091733,1756029044460,-500.0,0.00051373,10]
[381091734,1756029044470,-151.0,0.0005139,120]
[381091735,1756029044480,-202.20021287,0.00051399,60]
[381091736,1756029044489,-401198.9522828,0.000514,120]
[381091737,1756029044510,-99542.1675808,0.000514,120]
[381091738,1756029044727,-1065.60117057,0.000514,120]
[381091739,1756029044738,-14357.08790322,0.000514,120]
[381091740,1756029045293,-273643.3796813,0.000514,120]
[381091742,1756029046273,-2.4714283,0.00039283,2]
[381091743,1756029046304,-42.20666195,0.00039283,2]
[381091755,1756029047030,-202.26390975,0.00039283,2]
[381091756,1756029047040,-199.0,0.00047227,30]
[381091757,1756029047049,-199.0,0.00047265,120]
[381091758,1756029047058,-151.0,0.00049315,120]
[381091759,1756029047067,-149887.77290821,0.000514,120]
[381091760,1756029139178,577.70276148,0.000199,2]
[381091761,1756029139786,577.70276142,0.00021627,2]
[381091762,1756029140139,577.70276142,0.00023353,2]
[381091764,1756029305954,591.29129729,0.000199,2]
[381091765,1756029306163,591.29129714,0.00023353,2]
[381091766,1756029306859,591.29129714,0.00021627,2]
[381091767,1756029428111,-591.29129714,0.00026806,6]
[381091768,1756029431338,-159.3,0.00027098,7]
[381091769,1756029472593,645.26960428,0.000199,2]
[381091770,1756029472935,645.26960426,0.00026806,6]
[381091771,1756029473152,645.26960426,0.00021627,2]
[381091772,1756029473211,645.26960426,0.00023353,2]
[381091773,1756029551864,178.553047,0.00027268,41]
[381091774,1756029552055,178.553047,0.00027268,80]
[381091775,1756029552257,178.553047,0.00027268,119]
[381091776,1756029601081,2000.0,0.000275,3]
[381091777,1756029645649,798.89481978,0.000199,2]
[381091778,1756029645720,798.89481958,0.00023353,2]
[381091779,1756029645931,798.89481958,0.00026806,6]
[381091780,1756029646115,798.89481958,0.00021627,2]
[381091781,1756029812374,800.36076989,0.000199,2]
[381091782,1756029813031,800.36076975,0.00021627,2]
[381091783,1756029813085,800.36076975,0.00023353,2]
[381091784,1756029813307,800.36076975,0.00026806,6]
[381091785,1756029911062,162.722421,0.00013699,2]
[381091786,1756029978239,693.64600045,0.000199,2]
[381091787,1756029978334,693.64600045,0.00021627,2]
[381091788,1756029978508,693.64600045,0.00026806,6]
[381091789,1756029978806,693.64600045,0.00023353,2]
[381091791,1756030144846,748.9796889,0.000199,2]
[381091792,1756030144914,748.97968888,0.00026806,6]